[Event "Czech Championship Women 2022"]
[Site "Jaromerice nad Rokytnou"]
[Date "2022.05.24"]
[Round "3.5"]
[White "Zelbova, Lada"]
[Black "Nemcova, Karin"]
[Result "1-0"]
[ECO "B92"]
[WhiteElo "1967"]
[BlackElo "2181"]
[Annotator "TA"]
[PlyCount "99"]
[EventDate "2022.05.24"]
[EventType "tourn"]
[EventCountry "CZE"]
[SourceTitle "playchess.com"]
[Source "ChessBase"]
[SourceQuality "1"]
[TimeControl "40/5400+30:1800+30"]

{[%evp 18,99,0,8,16,-18,9,-18,38,31,64,41,94,97,96,96,90,90,107,125,825,57,194,213,195,179,191,186,248,233,233,246,260,256,251,145,143,110,110,115,96,89,80,123,89,56,378,377,363,362,942,886,689,516,2662,2758,2892,2783,2669,2330,2870,2541,12837,12837,12837,12838,12838,12839,12839,12839,12839,12839,12840,12840,12841,12841,12841,12839,12840,12840,12841,12842,12842,12843]} 1. e4 {[%emt 0:00:04]} c5 {[%emt 0:00:07]} 2. Nf3 {[%emt 0:00:06]} d6 {[%emt 0:00:06]} 3. d4 {[%emt 0:00:07]} cxd4 {[%emt 0:00:06]} 4. Nxd4 {[%emt 0:00:05]} Nf6 {[%emt 0:00:10]} 5. Nc3 {[%emt 0:00:07]} a6 {[%emt 0:00:05]} 6. Be2 {[%emt 0:00:15]} e5 {[%emt 0:00:09]} 7. Nb3 {[%emt 0:00:07]} Be7 {[%emt 0:00:08]} 8. Be3 {[%emt 0:00:20]} Be6 {[%emt 0:00:16]} 9. Nd5 $1 {[%emt 0:00:57][%mdl 4] now scores much better than the old 9.0-0.} Nbd7 {[%emt 0:00:21]} 10. Qd3 {[%emt 0:00:26]} Rc8 {[%emt 0:01:26] B92: Sicilian Najdorf: 6 Be2.} 11. a4 {[%emt 0:02:47][%cal Ba2a4,Ba4a5][%mdl 32]} O-O {[%emt 0:04:01]} (11... Bxd5 $5 12. exd5 Nb6 $11) 12. O-O {[%emt 0:02:24] [#]} Nc5 $146 {[%emt 0:05:47]} (12... Bxd5 $11 13. exd5 Nb6) ({Predecessor:} 12... Bxd5 13. exd5 Nb6 14. Bxb6 Qxb6 15. a5 Qb4 16. c4 Nd7 17. Ra3 f5 18. Qc2 Bg5 {½-½ (30) Kubicki,T (2312)-Chomicki,H (2295) ICCF email 2003}) 13. Nxc5 {[%emt 0:02:54]} dxc5 {[%emt 0:00:40]} 14. c4 {[%emt 0:00:58]} Nd7 {[%emt 0:05:17]} ({Black should try} 14... Bxd5 $14 15. cxd5 (15. exd5 Bd6 $14) 15... c4) 15. a5 $16 {[%emt 0:08:10]} Bg5 {[%emt 0:05:05]} 16. Rfd1 {[%emt 0:15:05]} Bxe3 {[%emt 0:02:04]} 17. Qxe3 {[%emt 0:01:16]} Qe8 {[%emt 0:10:06]} 18. Ra3 {[%emt 0:08:54] 0x0.0024d8119b27dp-1022s more active pieces.} Nb8 $2 {[%emt 0:09:00][%mdl 8192] [#]} (18... Rb8 $16 19. Rad3 Bxd5) 19. Qb3 $2 {[%emt 0:03:34]} (19. Nf6+ $1 $18 {[%mdl 512]} Kh8 20. Nxe8 Rfxe8 21. Qb3) 19... Bxd5 {[%emt 0:04:47]} (19... f6 $14) 20. cxd5 $18 {[%emt 0:01:52]} (20. exd5 $6 Qe7 $16) 20... Qd7 {[%emt 0:02:03]} 21. Qg3 {[%emt 0:02:54]} Qd6 {[%emt 0:00:43]} 22. Rb3 {[%emt 0:02:34]} Nd7 {[%emt 0:04:27]} (22... b5 $142) 23. Rxb7 {[%emt 0:03:50]} Rb8 {[%emt 0:02:33]} 24. Ra7 {[%emt 0:13:32]} (24. Bxa6 $6 Qxa6 25. Rxd7 Qxa5 $16) 24... Rxb2 {[%emt 0:01:35]} 25. Rxa6 {[%emt 0:00:45]} (25. Bxa6 $6 Nf6 $16) 25... Qb8 {[%emt 0:01:33]} 26. Bg4 {[%emt 0:01:33]} (26. Bf1 $18) 26... Rb3 $16 {[%emt 0:05:54]} 27. Qh4 {[%emt 0:01:50]} (27. Bxd7 $2 Rxg3 28. hxg3 Qb7 $19) 27... Rb1 {[%emt 0:01:08] Strongly threatening ...Qb3.} 28. h3 $1 {[%emt 0:03:02]} Qb3 {[%emt 0:07:27] [#]} 29. Rxb1 $40 {[%emt 0:03:12][%mdl 128] White goes for the king.} (29. Qh5 $2 g6 30. Qg5 Rxd1+ $19) 29... Qxb1+ {[%emt 0:00:08]} 30. Kh2 {[%emt 0:00:03]} Qxe4 {[%emt 0:00:23]} 31. Qg3 {[%emt 0:06:09]} f5 $2 {[%emt 0:08:51][%mdl 8192]} (31... Qxd5 $14 32. Bxd7 Qxd7) 32. Bf3 $18 {[%emt 0:00:34]} Qd4 {[%emt 0:02:29]} 33. Ra7 {[%emt 0:01:16]} Qa4 {[%emt 0:02:01] [#]} (33... Rf7 34. Be2 (34. Qg5 h6 $16) 34... g6) 34. Bd1 $1 {[%emt 0:03:54][%mdl 512] White is clearly winning.} Qb5 {[%emt 0:03:26]} 35. Qg5 {[%emt 0:00:26] aiming for Qe7.} g6 {[%emt 0:00:20]} (35... Rf6 $142 36. Be2 Qa4) 36. Qe7 {[%emt 0:00:44]} Rf7 {[%emt 0:00:11]} 37. Qe8+ {[%emt 0:00:59]} Kg7 {[%emt 0:00:55]} 38. a6 {[%emt 0:01:10]} c4 {[%emt 0:03:52]} 39. Qe6 {[%emt 0:02:56] White wants to mate with Rb7.} c3 {[%emt 0:04:49]} 40. Rb7 {[%emt 0:01:07]} c2 {[%emt 0:01:57]} 41. Bxc2 {[%emt 0:34:31]} ({Not} 41. Rxb5 cxd1=Q 42. a7 (42. Rb7 Qd4 $11) 42... Qa4 $11) 41... Qc4 {[%emt 0:30:41]} 42. Rxd7 {[%emt 0:01:28]} Qf4+ {[%emt 0:00:16]} 43. Kg1 {[%emt 0:00:16]} Qc1+ {[%emt 0:00:02] [#]} 44. Bd1 $1 {[%emt 0:00:18]} Qxd1+ {[%emt 0:00:04]} 45. Kh2 {[%emt 0:00:06]} Rxd7 {[%emt 0:00:08]} 46. Qxd7+ {[%emt 0:00:06]} Kh6 {[%emt 0:00:04]} 47. Qa7 {[%emt 0:00:00]} Qxd5 {[%emt 0:00:00]} 48. Qb6 {[%emt 0:00:00]} (48. Qb7 Qd4 $18) 48... f4 {[%emt 0:00:00]} 49. a7 {[%emt 0:00:00]} ({Less strong is} 49. Qb7 Qa2 $16) 49... Qa2 {[%emt 0:00:00]} 50. Qc5 {[%emt 0:00:00] Weighted Error Value: White=0.55/Black=0.52} ({Stronger than} 50. Qb7 Qxf2 51. Kh1 (51. a8=Q Qg3+ 52. Kh1 Qe1+ 53. Kh2 Qg3+ 54. Kh1 Qe1+ 55. Kh2 Qg3+ $11) 51... Qe1+ 52. Kh2 Qg3+ 53. Kh1 Qe1+ 54. Kh2 Qg3+ 55. Kh1 Qe1+ $11) 1-0

[Event "Czech Championship Women 2022"]
[Site "Jaromerice nad Rokytnou"]
[Date "2022.05.24"]
[Round "4.1"]
[White "Pilsova, Karolina"]
[Black "Nemcova, Karin"]
[Result "1/2-1/2"]
[ECO "B90"]
[WhiteElo "2229"]
[BlackElo "2181"]
[Annotator "TA"]
[PlyCount "87"]
[EventDate "2022.05.24"]
[EventType "tourn"]
[EventCountry "CZE"]
[SourceTitle "playchess.com"]
[Source "ChessBase"]
[SourceQuality "1"]
[TimeControl "40/5400+30:1800+30"]

{[%evp 17,87,5,12,10,8,0,35,1,10,0,-9,-5,-6,-24,-33,-23,-16,0,0,-67,133,93,92,8,117,120,131,114,122,145,138,139,160,161,202,202,198,195,202,195,732,727,686,105,181,0,0,0,0,0,0,0,48,0,24,24,24,24,24,9,24,0,0,0,25,25,25,0,0,0,0,-43]} 1. e4 {[%emt 0:00:03]} c5 {[%emt 0:00:06]} 2. Nf3 {[%emt 0:00:07]} d6 {[%emt 0:00:07]} 3. d4 {[%emt 0:00:05]} cxd4 {[%emt 0:00:06]} 4. Nxd4 {[%emt 0:00:06]} Nf6 {[%emt 0:00:07]} 5. Nc3 {[%emt 0:00:05]} a6 {[%emt 0:00:06]} 6. Be3 {[%emt 0:00:27]} e5 {[%emt 0:00:10]} 7. Nf3 {[%emt 0:00:09]} Be7 {[%emt 0:00:35]} 8. Bc4 {[%emt 0:00:16]} O-O {[%emt 0:00:56]} 9. O-O {[%emt 0:01:15]} Be6 {[%emt 0:00:51]} 10. Qe2 {[%emt 0:01:53] B90: Sicilian Najdorf: Unusual White 6th moves, 6 Be3 Ng4 and 6 Be3 e5.} b5 {[%emt 0:02:34]} 11. Bb3 {[%emt 0:04:36]} h6 {[%emt 0:13:56]} 12. Rfd1 {[%emt 0:11:44] And now Nxe5 would win. White is slightly better.} Nbd7 {[%emt 0:00:42]} 13. Nh4 {[%emt 0:18:24]} b4 {[%emt 0:09:44]} 14. Na4 {[%emt 0:00:49]} Nxe4 {[%emt 0:04:34]} 15. Bxe6 {[%emt 0:04:04]} fxe6 {[%emt 0:00:23]} 16. Ng6 {[%emt 0:01:21] Threatens to win with Qg4.} Rf6 {[%emt 0:04:30]} 17. Nxe7+ {[%emt 0:14:10]} Qxe7 {[%emt 0:00:21] [#]} 18. Qc4 $146 {[%emt 0:00:09]} (18. f3 $11 Ng5 19. Qc4) ({Predecessor:} 18. f3 Ng5 19. Bxg5 hxg5 20. Qc4 Rb8 21. Qxa6 d5 22. Qa7 Rff8 23. b3 Ra8 24. Qe3 {0-1 (37) Kover,W (2235)-Dearnley,A (2315) ICCF corr 2003}) 18... Ng5 $2 {[%emt 0:14:46]} (18... d5 $1 $15 {stays ahead.} 19. Rxd5 Raf8) 19. Bxg5 {[%emt 0:03:39]} (19. Qxb4 Nf7 $14) 19... hxg5 {[%emt 0:00:08] [#]} 20. Qxb4 {[%emt 0:00:06]} ({Better is} 20. Qc6 $1 $16 {[%cal Rc6a8]} Raf8 21. Qxd6 (21. Rxd6 Nb8 $11)) 20... Nc5 {[%emt 0:04:51]} (20... Qf7 $1 $11 {remains equal.}) 21. Nxc5 $16 {[%emt 0:00:40]} dxc5 {[%emt 0:00:07]} 22. Qe4 $36 {[%emt 0:00:39][%csl LRa8,LRe5][%mdl 2048] White is really pushing.} Raf8 {[%emt 0:00:28]} 23. Rd2 {[%emt 0:01:02]} Qf7 {[%emt 0:03:04][%cal Rf6f2]} 24. Rf1 {[%emt 0:01:08]} (24. Qxe5 $6 Rxf2 25. Qe1 (25. Rxf2 $2 Qxf2+ 26. Kh1 Qf1+ 27. Rxf1 Rxf1#) 25... Rf4 $11) 24... Rf5 {[%emt 0:00:40]} 25. Qc6 {[%emt 0:02:14]} g4 {[%emt 0:02:29]} 26. Qxc5 {[%emt 0:01:50]} ({Don't play} 26. Qxa6 Rh5 27. Rfd1 e4) 26... Rh5 {[%emt 0:01:57]} 27. Qe3 {[%emt 0:02:54] Active counter play!} Qg6 {[%emt 0:00:24]} 28. Rfd1 {[%emt 0:03:26]} Rf3 $2 {[%emt 0:01:56]} (28... Qf5 29. Re2 Rf6) 29. Rd8+ $18 {[%emt 0:02:05]} (29. gxf3 {gets mated.} gxf3+) 29... Kh7 {[%emt 0:00:08]} 30. Qd2 $2 {[%emt 0:00:42]} (30. gxf3 $18 gxf3+ 31. Kf1) 30... Rhf5 {[%emt 0:06:31] [#]} 31. Rc8 $2 {[%emt 0:06:42]} (31. gxf3 {is a self mate.} gxf3+) ({Only move:} 31. Rf1 $1 $18) 31... Rxf2 $11 {[%emt 0:01:15]} 32. Qxf2 {[%emt 0:04:48]} Rxf2 {[%emt 0:00:09]} 33. Kxf2 {[%emt 0:00:04][%mdl 4096] Endgame KQ-KRR} Qf5+ {[%emt 0:00:26]} 34. Kg1 {[%emt 0:01:09]} e4 {[%emt 0:00:39]} (34... Qe4 $11 {deserves consideration.}) 35. Rc3 {[%emt 0:02:46]} (35. Re1 $14) 35... e3 {[%emt 0:04:35]} 36. Rxe3 {[%emt 0:00:33] Strongly threatening Rdd3.} Qxc2 {[%emt 0:00:10]} 37. Rde1 {[%emt 0:00:15]} Qxb2 {[%emt 0:00:09]} 38. a3 {[%emt 0:05:04]} a5 {[%emt 0:03:25]} 39. R1e2 {[%emt 0:01:33]} Qd4 {[%emt 0:00:17]} 40. Kh1 {[%emt 0:04:26]} e5 {[%emt 0:02:57]} 41. Re1 {[%emt 0:31:19]} Qa4 {[%emt 0:32:06]} 42. h3 {[%emt 0:00:00]} gxh3 {[%emt 0:00:00]} 43. Rxh3+ {[%emt 0:00:00]} Kg6 {[%emt 0:00:00]} 44. Rhe3 {[%emt 0:00:00] Black defended with fortune.  Weighted Error Value: White=0.39/Black=0.24 (precise)} 1/2-1/2

[Event "Czech Championship Women 2022"]
[Site "Jaromerice nad Rokytnou"]
[Date "2022.05.24"]
[Round "4.2"]
[White "Petrova, Kristyna"]
[Black "Zelbova, Lada"]
[Result "1-0"]
[ECO "B21"]
[WhiteElo "2264"]
[BlackElo "1967"]
[Annotator "TA"]
[PlyCount "77"]
[EventDate "2022.05.24"]
[EventType "tourn"]
[EventCountry "CZE"]
[SourceTitle "playchess.com"]
[Source "ChessBase"]
[SourceQuality "1"]
[TimeControl "40/5400+30:1800+30"]

{[%evp 9,76,-6,13,0,0,0,13,0,0,0,0,-12,0,1,9,0,38,2,26,22,129,111,138,131,205,205,298,291,223,281,275,295,358,368,353,351,383,368,343,239,215,185,267,185,152,181,259,278,302,272,270,245,239,222,418,422,421,402,621,619,652,662,658,651,29996,29997,29997,29998,29999]} 1. e4 {[%emt 0:00:03]} c5 {[%emt 0:00:12]} 2. Be2 {[%emt 0:00:06]} Nc6 {[%emt 0:01:51]} 3. f4 {[%emt 0:00:15]} e6 {[%emt 0:01:34]} 4. Nf3 {[%emt 0:00:23]} d5 {[%emt 0:02:49]} 5. d3 {[%emt 0:00:12]} g6 {[%emt 0:01:01]} 6. O-O {[%emt 0:00:35] B21: Sicilian: 2 f4 and Morra Gambit.} Bg7 {[%emt 0:00:40]} 7. c3 {[%emt 0:01:04]} Nge7 {[%emt 0:02:19]} 8. Qe1 {[%emt 0:01:30] The position is equal.} O-O {[%emt 0:01:14]} 9. Be3 {[%emt 0:09:04]} b6 {[%emt 0:03:37]} 10. Na3 {[%emt 0:02:29]} Ba6 {[%emt 0:09:41]} 11. Rd1 {[%emt 0:05:24]} Qc7 {[%emt 0:06:33] [#]} 12. e5 $146 {[%emt 0:15:02]} ({Predecessor:} 12. Bc1 b5 13. Nc2 b4 14. c4 dxc4 15. dxc4 Rad8 16. Qf2 Rxd1 17. Rxd1 Qa5 18. e5 {0-1 (50) Hopman,P (2346)-Wiersma,E (2320) Wijk aan Zee 2014}) 12... Nf5 {[%emt 0:08:18]} 13. Bf2 {[%emt 0:05:27]} h5 {[%emt 0:04:51]} 14. d4 {[%emt 0:07:43]} c4 {[%emt 0:00:45] White leaves nothing to chance now.} (14... Bxe2 $11 {keeps the balance.} 15. Qxe2 cxd4) 15. h3 $16 {[%emt 0:02:18][%cal Bh2h3,Bh3g4][%mdl 32]} b5 {[%emt 0:08:07][%cal Ob5b4]} 16. Nc2 {[%emt 0:01:06] Inhibits b4.} Bc8 {[%emt 0:00:54]} (16... b4 $16 {was necessary.}) 17. g4 $1 $18 {[%emt 0:01:37]} hxg4 {[%emt 0:00:11]} (17... Nh6 {might work better.}) 18. hxg4 {[%emt 0:00:02]} Nh6 {[%emt 0:00:12] [#]} 19. Ne3 {[%emt 0:03:47]} b4 {[%emt 0:03:50]} 20. Bh4 {[%emt 0:04:21] And now Bg5 would win.} (20. cxb4 Qb7 21. b5 Qxb5 $16) 20... bxc3 {[%emt 0:04:26]} 21. bxc3 {[%emt 0:00:02]} Kh7 {[%emt 0:04:10]} 22. Bg5 {[%emt 0:06:10]} Rh8 {[%emt 0:01:09]} 23. Kg2 {[%emt 0:01:28]} Kg8 {[%emt 0:00:42]} 24. Rb1 {[%emt 0:06:28]} Rb8 {[%emt 0:04:32]} 25. Rh1 {[%emt 0:01:44]} Kf8 {[%emt 0:01:29]} (25... Rxb1 {keeps fighting.} 26. Qxb1 Bd7) 26. Qc1 {[%emt 0:04:04]} Rxb1 {[%emt 0:02:09]} 27. Qxb1 {[%emt 0:00:02]} Qb8 {[%emt 0:04:59] [#]} (27... Ng8 $142 28. Rxh8 Bxh8) 28. Qc1 $1 {[%emt 0:07:14]} Ng8 {[%emt 0:01:48]} 29. Qa3+ {[%emt 0:06:48]} Ke8 {[%emt 0:01:25]} 30. Rxh8 {[%emt 0:00:12] Dancing on a razor blade.} Bxh8 {[%emt 0:00:07]} 31. f5 {[%emt 0:00:10] Hoping for f6.} exf5 {[%emt 0:03:43]} (31... Bg7 32. fxe6 fxe6) 32. gxf5 {[%emt 0:00:30]} Bxf5 {[%emt 0:00:21]} 33. Nxd5 {[%emt 0:02:03]} Bg7 {[%emt 0:02:37]} (33... Be4 $142) 34. Bxc4 {[%emt 0:01:23]} Bf8 {[%emt 0:01:56]} 35. Qa4 {[%emt 0:00:37]} Bd7 {[%emt 0:02:13]} 36. Qb3 {[%emt 0:00:59][%cal Od5c7] Threatening mate with Nc7+!} Be6 {[%emt 0:09:27]} 37. Qxb8+ {[%emt 0:00:20] White mates.} Nxb8 {[%emt 0:00:05]} 38. Bb5+ {[%emt 0:00:13]} Nd7 {[%emt 0:00:08]} 39. Nc7# {[%emt 0:00:05] Weighted Error Value: White=0.09 (flawless) /Black=0.52} 1-0

[Event "Czech Championship Women 2022"]
[Site "Jaromerice nad Rokytnou"]
[Date "2022.05.24"]
[Round "4.3"]
[White "Lhotska, Anna"]
[Black "Richterova, Natasa"]
[Result "1-0"]
[ECO "C50"]
[WhiteElo "2029"]
[BlackElo "2181"]
[Annotator "TA"]
[PlyCount "69"]
[EventDate "2022.05.24"]
[EventType "tourn"]
[EventCountry "CZE"]
[SourceTitle "playchess.com"]
[Source "ChessBase"]
[SourceQuality "1"]
[TimeControl "40/5400+30:1800+30"]

{[%evp 10,69,53,66,150,168,160,154,160,160,158,164,171,170,166,169,205,179,209,231,289,290,274,286,303,298,310,302,308,268,267,234,352,344,352,334,365,356,400,366,862,432,463,364,364,356,357,359,363,359,505,490,884,491,514,468,974,959,1233,991,1233,1092]} 1. e4 {[%emt 0:00:03]} e5 {[%emt 0:00:09]} 2. Nf3 {[%emt 0:00:04]} Nc6 {[%emt 0:00:03]} 3. Bc4 {[%emt 0:00:06]} Bc5 {[%emt 0:00:36]} 4. O-O {[%emt 0:00:15]} Nf6 {[%emt 0:00:23]} 5. d4 {[%emt 0:00:51]} Nxd4 {[%emt 0:04:15]} 6. Nxe5 {[%emt 0:03:04]} O-O {[%emt 0:03:36] C50: Hungarian Defence and Giuoco Pianissimo.} (6... Qe7 $14 7. Bxf7+ Kf8) 7. Be3 $16 {[%emt 0:09:34]} Ne6 {[%emt 0:11:41]} 8. Bxe6 {[%emt 0:04:00] White is much more active. The black rooks are badly placed.} Bxe3 {[%emt 0:00:12] White is clearly better.} 9. Bxf7+ {[%emt 0:01:19]} (9. fxe3 fxe6 10. Nc3 d6 $11) 9... Kh8 {[%emt 0:05:25]} 10. Bb3 {[%emt 0:05:47]} ({Don't play} 10. fxe3 d6 $16) 10... Qe7 {[%emt 0:00:34]} 11. Nf7+ $1 {[%emt 0:01:04]} ({Resist} 11. fxe3 Qxe5 12. Qd4 d6 $16) 11... Rxf7 {[%emt 0:00:05]} 12. Bxf7 {[%emt 0:00:07] [#]} ({But not} 12. fxe3 $6 Rf8 $16) 12... Bf4 $146 {[%emt 0:01:12]} ({Predecessor:} 12... Bxf2+ 13. Rxf2 Qxf7 14. e5 d6 15. exf6 Bd7 16. fxg7+ Qxg7 17. c3 Bc6 18. Qd4 Re8 {1-0 (38) Harivardhini,I (1714)-Aditi,A (1587) Chennai 2016}) 13. Bc4 {[%emt 0:10:27]} d5 {[%emt 0:12:24]} 14. exd5 {[%emt 0:04:39]} Bg4 {[%emt 0:04:23] [#]} 15. Qd3 {[%emt 0:05:11]} Qe5 {[%emt 0:08:04]} 16. h3 {[%emt 0:13:42]} Bf5 {[%emt 0:05:50]} 17. Qc3 {[%emt 0:03:56]} Qd6 {[%emt 0:02:30]} 18. Nd2 {[%emt 0:01:01]} Rf8 {[%emt 0:06:14]} 19. Rae1 {[%emt 0:03:10]} c6 {[%emt 0:01:17]} 20. Re2 {[%emt 0:04:34] [#] Strongly threatening dxc6.} cxd5 {[%emt 0:00:15]} (20... b5 $142 21. Bd3 Nxd5) 21. Bd3 $18 {[%emt 0:00:44]} Bd7 {[%emt 0:11:44]} 22. Rfe1 {[%emt 0:03:00]} a6 {[%emt 0:00:11]} 23. Nb3 {[%emt 0:00:40][%cal Bd2b3,Bb3d4,Bd4f5,Bf5d4,Bd4e6,Be6g5,Bg5f7,Bf7d6][%mdl 32]} b6 {[%emt 0:05:43]} 24. Nd4 {[%emt 0:03:57]} Rc8 $2 {[%emt 0:01:20]} (24... Bh2+ 25. Kh1 Bf4) 25. Qb3 {[%emt 0:00:32]} b5 {[%emt 0:01:01]} 26. Nf5 {[%emt 0:01:46]} Qc5 {[%emt 0:01:14]} 27. c3 {[%emt 0:01:32]} Rf8 {[%emt 0:01:27]} 28. Nd4 {[%emt 0:00:39]} Bb8 {[%emt 0:01:06]} 29. Qb4 {[%emt 0:03:17]} Qc8 {[%emt 0:00:01]} (29... Bd6 $142 30. Qxc5 Bxc5) 30. Ne6 {[%emt 0:00:51] White is clearly winning.} Re8 {[%emt 0:03:20]} (30... Bxe6 $142 31. Rxe6 Ba7) 31. Ng5 {[%emt 0:01:25] White threatens Rxe8+ and mate.} Rxe2 {[%emt 0:03:49]} 32. Rxe2 {[%emt 0:00:16] Threatens to win with Re7.} Ba7 {[%emt 0:00:52]} (32... h6 $142 33. Nf3 Bc7) 33. Qh4 {[%emt 0:00:59][%cal Rg5h7]} Bf5 {[%emt 0:02:10]} 34. Nf7+ {[%emt 0:00:48]} Kg8 {[%emt 0:00:09]} 35. Nd6 {[%emt 0:00:14][%csl LRc8,LRf5] White took control after the opening.  Weighted Error Value: White=0.49/Black=0.30} 1-0

[Event "Czech Championship Women 2022"]
[Site "Jaromerice nad Rokytnou"]
[Date "2022.05.24"]
[Round "4.4"]
[White "Sikorova, Olga"]
[Black "Trasakova, Adela"]
[Result "1-0"]
[ECO "A11"]
[WhiteElo "2173"]
[BlackElo "1842"]
[Annotator "TA"]
[PlyCount "57"]
[EventDate "2022.05.24"]
[EventType "tourn"]
[EventCountry "CZE"]
[SourceTitle "playchess.com"]
[Source "ChessBase"]
[SourceQuality "1"]
[TimeControl "40/5400+30:1800+30"]

{[%evp 12,57,0,0,0,0,18,26,12,0,4,0,152,156,160,165,162,150,145,129,255,275,293,241,251,278,268,268,275,260,297,304,315,314,398,386,413,414,517,476,533,519,29995,29996,29996,29997,29997,29998]} 1. c4 {[%emt 0:00:03]} c6 {[%emt 0:00:01]} 2. g3 {[%emt 0:00:26]} Nf6 {[%emt 0:00:02]} 3. Nf3 {[%emt 0:00:11]} d5 {[%emt 0:00:02]} 4. Bg2 {[%emt 0:00:19]} dxc4 {[%emt 0:00:04]} 5. O-O {[%emt 0:00:15]} Nbd7 {[%emt 0:00:05]} 6. Na3 {[%emt 0:00:52][%cal Bb1a3,Ba3b5,Bb5c7,Bc7e6][%mdl 32]} Nb6 {[%emt 0:00:07]} 7. Qc2 {[%emt 0:00:46]} Be6 {[%emt 0:00:09] A11: English Opening: 1...c6.} 8. Ne5 {[%emt 0:02:56]} Qd4 {[%emt 0:04:40] [#]} 9. Nxc6 {[%emt 0:00:15]} bxc6 {[%emt 0:00:22] White has an edge.} 10. Bxc6+ {[%emt 0:00:06]} Nfd7 {[%emt 0:02:24]} 11. Nb5 {[%emt 0:13:14] [#]} Qc5 $146 {[%emt 0:14:52]} (11... Qe5 $11 12. d4 cxd3 13. exd3 Rc8 14. Nxa7 {[#]} Rxc6 $1 15. Nxc6 Qd5) ({Predecessor:} 11... Qe5 12. d4 cxd3 13. Qxd3 Rc8 14. Nxa7 Rxc6 15. Nxc6 Qc5 16. Nd4 Bc4 17. Qd1 e5 {0-1 (35) Pantsulaia,L (2599)-Magem Badals,J (2589) Khanty-Mansiysk 2010}) 12. Nc7+ $16 {[%emt 0:02:52]} Kd8 {[%emt 0:00:01]} 13. Nxe6+ {[%emt 0:00:25]} fxe6 {[%emt 0:00:02]} 14. Bxa8 {[%emt 0:00:24]} Nxa8 {[%emt 0:00:17]} 15. d3 {[%emt 0:06:49]} cxd3 {[%emt 0:05:52]} (15... g6 $16 {was worth a try.} 16. Be3 (16. Qxc4 Qxc4 17. dxc4 Nab6 $16) (16. dxc4 Nab6 $16) 16... Qc7) 16. Qxd3 $18 {[%emt 0:02:09]} Qd6 {[%emt 0:05:56]} 17. Qc2 {[%emt 0:03:13] Be3 is the strong threat.} Nab6 {[%emt 0:10:18]} 18. Be3 {[%emt 0:04:53]} Ke8 {[%emt 0:05:34]} 19. Rfd1 {[%emt 0:03:49]} Qb8 {[%emt 0:01:23]} 20. Rac1 {[%emt 0:04:56][%cal Ba1c1,Bc1c7,Bc7a7][%mdl 32]} Kf7 {[%emt 0:03:23]} 21. Qc7 {[%emt 0:00:45]} Qxc7 {[%emt 0:04:09]} 22. Rxc7 {[%emt 0:00:01]} Nf6 {[%emt 0:00:35]} 23. Rxa7 {[%emt 0:06:52]} Nc4 {[%emt 0:02:43]} 24. Bc5 {[%emt 0:04:22]} Nxb2 {[%emt 0:04:00]} 25. Rc1 {[%emt 0:04:59]} g6 {[%emt 0:02:45]} 26. Ba3 {[%emt 0:00:41]} Bh6 {[%emt 0:00:46]} (26... Na4 $18 27. Rxa4 Bg7) 27. Rxe7+ {[%emt 0:01:12] White mates.} Kg8 {[%emt 0:00:20]} 28. Rc8+ {[%emt 0:00:51]} Bf8 {[%emt 0:00:05]} 29. Rb7 {[%emt 0:01:47] Black got outplayed after the opening.  Weighted Error Value: White=0.05 (flawless) /Black=0.76} 1-0